Cogmind - Beta 16.1 @@@ ROGUE MODE // 2026.03.13 @ 15:00:35 Player: archimedes Result: Self-destructed Performance ------------- Evolutions (1) 500 Regions Visited (3) 600 Robots Destroyed (19) 95 Value Destroyed (338) 338 Prototype IDs (0) 0 Alien Tech Used (0) 0 Bonus (0) 0 TOTAL SCORE: 1533 Bonus ------- None Cogmind --------- Core Integrity 263/400 Matter 249/300 Energy 250/250 System Corruption 0% Temperature Warm (139) Movement Core (250) Ox4 Location -9/Mines Parts ------- > --- POWER (3) -------- Ion Engine > --- PROPULSION (2) --- Light Treads > --- UTILITY (2) ------ Medium Storage Unit Visual Processing Unit > --- WEAPON (2) ------- (None) > --- INVENTORY (10) --- Visual Processing Unit Improved Terrain Scanner Peak State ------------ > --- POWER ------------ Ion Engine Light Nuclear Core > --- PROPULSION ------- Aluminum Leg Aluminum Leg > --- UTILITY ---------- Medium Storage Unit Improved Terrain Scanner > --- WEAPON ----------- Beam Cannon Mining Laser > --- INVENTORY -------- Light Treads Wheel Visual Processing Unit [Rating: 12] Favorites ----------- Power Light Nuclear Core Engine Light Ion Engine Power Core Light Nuclear Core Propulsion Aluminum Leg Treads Light Treads Leg Aluminum Leg Wheel Wheel Utility Improved Terrain Scanner Device Improved Terrain Scanner Storage Medium Storage Unit Processor Visual Processing Unit Weapon Beam Cannon Energy Gun EM Pulse Gun Energy Cannon Beam Cannon Launcher Grenade Launcher Special Weapon Mining Laser Build | -11 -10 -9 -9 ------- Run | Yrd Mat Mat Min Slots Evolved 2 | . . 2 . Power 2 | . . 2 . Propulsion . | . . . . Utility . | . . . . Weapon . | . . . . Parts Attached 17 | 8 3 4 2 Power 4 | 2 1 1 . Engine 3 | 2 . 1 . Core 1 | . 1 . . Reactor . | . . . . Propulsion 4 | 2 . . 2 Treads 1 | . . . 1 Leg 2 | 2 . . . Wheel 1 | . . . 1 Hover . | . . . . Flight . | . . . . Utility 4 | 2 . 2 . Device 2 | 2 . . . Storage 1 | . . 1 . Processor 1 | . . 1 . Hackware . | . . . . Protection . | . . . . Artifact . | . . . . Weapon 5 | 2 2 1 . Energy Gun 2 | 2 . . . Energy Cannon 1 | . 1 . . Ballistic Gun . | . . . . Ballistic Cannon . | . . . . Launcher 1 | . 1 . . Special Weapon 1 | . . 1 . Impact Weapon . | . . . . Slashing Weapon . | . . . . Piercing Weapon . | . . . . Special Melee Weapon . | . . . . Unidentified Prototypes . | . . . . Parts Lost 7 | . 1 3 3 Power 1 | . . . 1 Propulsion 3 | . . 2 1 Utility . | . . . . Weapon 3 | . 1 1 1 Highest Loss Streak 6 | . 1 3 6 To Critical Strikes . | . . . . Average Backups 3 | 1 3 3 2 Power . | . . . . Propulsion 1 | 1 1 2 . Utility . | . . 1 2 Weapon . | . 1 . . Tool/Special . | . . . . Unused Backups 3 | . 2 . 1 Power 1 | . 1 . . Propulsion 1 | . 1 . . Utility 1 | . . . 1 Weapon . | . . . . Tool/Special . | . . . . Average Slot Usage (%) 87 | . 98 76 71 Engine 8 | . 10 6 11 Core 7 | . 3 11 11 Leg 22 | . 28 19 . Device 18 | . 28 9 . Storage 4 | . . 8 11 Processor 2 | . . 3 11 Energy Gun 8 | . 16 . . Energy Cannon 7 | . 5 9 . Launcher 2 | . 4 . . Special Weapon 4 | . . 8 11 Peak Build Rating 12 | 9 11 12 10 Average Rating 8 | 3 9 10 8 On Entrance 6 | . 9 10 8 Avg Prop Armor Cover (%) . | . . . . Naked Turns . | . . . . Heaviest Build 25 | 9 13 25 21 Greatest Support 20 | 20 20 20 10 Greatest Overweight (x) 6 | . . 6 4 Average Overweight (x) . | . . . 2 Largest Inventory Capacity 10 | 5 5 10 10 Average Capacity 6 | 5 5 9 10 Most Carried 5 | 5 5 5 3 Average Carried 3 | 2 3 3 2 Final Capacity 10 | 5 5 10 10 Final Carried 4 | 3 4 4 2 Class Distribution -------------------- 89% | Mutant 10% | Scavenger-Mutant Dominant Class ---------------- Mutant | -10/Materials Mutant | -9/Materials Mutant | -9/Mines Resources | -11 -10 -9 -9 ----------- Run | Yrd Mat Mat Min Matter Collected 354 | 276 33 45 . Remotely . | . . . . Salvage Created 502 | 110 291 101 . Parts 51 | 14 31 6 . Haulers Intercepted 1 | . . 1 . Recyclers Shooed 3 | . 3 . . Parts Field Recycled . | . . . . Retrieved Matter . | . . . . Parts Self-Destructed . | . . . . Prevented . | . . . . Parts Restored . | . . . . Kills | -11 -10 -9 -9 ------- Run | Yrd Mat Mat Min Combat Hostiles Destroyed 8 | . 7 1 . Cannons 2 | . 2 . . AOE 5 | . 5 . . Classes Destroyed 9 | 2 5 2 . Worker 2 | 1 1 . . Builder 2 | . 2 . . Tunneler 4 | 3 1 . . Hauler 1 | . . 1 . Recycler 1 | . 1 . . Watcher 1 | . 1 . . Swarmer 3 | . 3 . . Grunt 4 | . 4 . . Sentry 1 | . . 1 . Best Kill Streak 4 | 4 4 1 . Combat Bots Only 3 | . 3 1 . Max Kills in Single Turn 3 | 1 3 1 . Gunslinging . | . . . . Exploded 1 | . 1 . . Melee . | . . . . Uniques/NPCs Destroyed . | . . . . Combat | -11 -10 -9 -9 -------- Run | Yrd Mat Mat Min Hostile Shots Fired 90 | 24 22 20 24 Missed 23 | 9 7 3 4 Hits 67 | 15 15 17 20 Projectile 67 | 15 15 17 20 Critical Strikes 3 | . . 1 2 Damage Taken 904 | 163 231 248 262 Core 260 | 77 46 58 79 Absorbed by Shields . | . . . . Core Remaining (%) 59 | 69 50 . . Volleys Fired 50 | 7 30 11 2 Largest 2 | 2 2 2 1 Hottest 160 | 90 90 160 100 Shots Fired 81 | 14 53 12 2 Gun 46 | 14 32 . . Cannon 25 | . 14 11 . Launcher 7 | . 7 . . Special 3 | . . 1 2 Kinetic . | . . . . Thermal 51 | 7 30 12 2 Explosive 7 | . 7 . . Electromagnetic 23 | 7 16 . . Robot Hit Streak 6 | 5 6 4 . Robot Miss Streak 4 | 4 2 2 2 Penetration Max . | . . . . Secondary Targets 2 | 2 . . . Max Gunslinging Chain 1 | 1 . . . Shots Hit Robots 48 | 8 32 8 . Core Hits 25 | 4 19 2 . Critical Kills . | . . . . Critical Parts Destroyed . | . . . . Critical Strikes 3 | 1 2 . . Burn 2 | . 2 . . Corrupt 1 | 1 . . . Melee Attacks . | . . . . Impact . | . . . . Slashing . | . . . . Piercing . | . . . . Sneak Attacks . | . . . . Combat Hostiles . | . . . . Follow-up Attacks . | . . . . Damage Inflicted 1043 | 120 776 147 . Guns 373 | 120 253 . . Cannons 230 | . 107 123 . Explosions 416 | . 416 . . Melee . | . . . . Ramming . | . . . . Kinetic . | . . . . Thermal 442 | 49 246 147 . Explosive 336 | . 336 . . Electromagnetic 265 | 71 194 . . Impact . | . . . . Slashing . | . . . . Piercing . | . . . . Highest Corruption . | . . . . Average Corruption . | . . . . Corruption Purged . | . . . . Corruption Blocked . | . . . . Overload Shots . | . . . . Overflow Damage 10 | . 10 . . Projectiles . | . . . . Explosions 10 | . 10 . . Melee . | . . . . Knockbacks . | . . . . Impact . | . . . . Kinetic . | . . . . Secondary . | . . . . Self-Inflicted Damage 94 | . 94 . . Shots 3 | . 3 . . Rammed . | . . . . Targets Rammed . | . . . . Kicked . | . . . . Crushed . | . . . . Highest Temperature 277 | 208 186 277 164 Average Temperature 78 | 93 57 117 101 Received Heat Transfer 420 | 90 45 108 177 Siege Activations . | . . . . Martial Activations . | . . . . Shielding Activations . | . . . . Robots Disrupted . | . . . . Combat Hostiles . | . . . . Robots Corrupted . | . . . . Combat Hostiles . | . . . . Parts Fried . | . . . . Impact Corruptions . | . . . . Robots Melted 1 | . . 1 . Combat Hostiles 1 | . . 1 . Parts Melted . | . . . . Heat Transferred 1173 | 148 716 309 . Parts Sabotaged . | . . . . Parts Stolen . | . . . . Parts Stripped . | . . . . Power Chain Reactions 1 | . 1 . . Alert | -11 -10 -9 -9 ------- Run | Yrd Mat Mat Min Maximum Alert Level 1 | . 1 . . Low Security (%) 95 | 100 90 100 100 Level 1 4 | . 9 . . Level 2 . | . . . . Level 3 . | . . . . Level 4 . | . . . . Level 5 . | . . . . High Security . | . . . . Max Security . | . . . . Peak Influence 237 | 15 237 91 7 Initial 91 | . . 91 7 Average 39 | 2 54 47 4 Influence Increases 376 | 20 310 46 . Destroy 0b10 Robot/C 160 | . 140 20 . Destroy 0b10 Robot/NC 55 | 20 30 5 . Destroy Leader 54 | . 42 12 . Successful Hack 9 | . . 9 . Disable Machine 75 | . 75 . . Destroy Structure 23 | . 23 . . Influence Decreases 376 | 20 93 243 20 Entered New Map 139 | . . 126 13 Time Decay 213 | 20 83 110 . Lost Part 24 | . 10 7 7 Squads Dispatched 3 | . 2 1 . Investigation 3 | . 2 1 . Extermination . | . . . . Reinforcement . | . . . . Assault . | . . . . Garrison . | . . . . Intercept . | . . . . Searches Triggered . | . . . . Construction Impeded . | . . . . Haulers Reinforced . | . . . . Active Scanning Responses . | . . . . Cargo Convoy Interrupts . | . . . . Stealth | -11 -10 -9 -9 --------- Run | Yrd Mat Mat Min Distress Signals 1 | . 1 . . Communications Jammed . | . . . . Distress Signals . | . . . . Times Spotted 18 | 1 11 3 3 Peak Tracking Total 4 | 1 4 2 3 Tactical Retreats . | . . . . Traps | -11 -10 -9 -9 ------- Run | Yrd Mat Mat Min Traps Triggered 1 | . 1 . . Indirectly . | . . . . Trap Hack Attempts . | . . . . Triggered . | . . . . Disarmed . | . . . . Reprogrammed . | . . . . Reused . | . . . . Traps Extracted . | . . . . Installed . | . . . . Triggered . | . . . . Machines | -11 -10 -9 -9 ---------- Run | Yrd Mat Mat Min Machines Disabled 5 | . 5 . . Max in Single Turn 2 | . 2 . . Machines Repaired . | . . . . Machines Dismantled . | . . . . Machines Sabotaged . | . . . . Overloaded Fab Kills . | . . . . Hacking | -11 -10 -9 -9 --------- Run | Yrd Mat Mat Min Machines Accessed 5 | . 2 3 . Terminals 3 | . 1 2 . Fabricators . | . . . . Repair Stations . | . . . . Recycling Units 2 | . 1 1 . Scanalyzers . | . . . . Garrison Access . | . . . . Total Hacks 24 | . 13 11 . Successful 16 | . 8 8 . Failed 7 | . 5 2 . Catastrophic . | . . . . Database Lockouts 1 | . . 1 . Manual . | . . . . Terminals 12 | . 4 8 . Fabricators . | . . . . Repair Stations . | . . . . Recycling Units 12 | . 9 3 . Scanalyzers . | . . . . Garrison Access . | . . . . Terminal Hacks 6 | . 1 5 . Record 3 | . . 3 . Alert Level 2 | . 1 1 . Zone Layout 1 | . . 1 . Fabricator Hacks . | . . . . Repair Station Hacks . | . . . . Recycling Unit Hacks 10 | . 7 3 . Recycle Component 2 | . 1 1 . Process 1 | . . 1 . Report Inventory 5 | . 5 . . Retrieve Matter 1 | . 1 . . Retrieve Components 1 | . . 1 . Scanalyzer . | . . . . Garrison Access Hacks . | . . . . Unauthorized Hacks . | . . . . Terminals . | . . . . Fabricators . | . . . . Repair Stations . | . . . . Recycling Units . | . . . . Scanalyzers . | . . . . Garrison Access . | . . . . Data Cores Recovered . | . . . . Used . | . . . . Hacking Detections 4 | . 2 2 . Full Trace Events 3 | . 1 2 . Feedback Events . | . . . . Feedback Blocked . | . . . . Robot Schematics Acquired . | . . . . Robots Built . | . . . . Authchips . | . . . . Time . | . . . . Total Robot Build Rating . | . . . . Part Schematics Acquired . | . . . . Parts Built . | . . . . Authchips . | . . . . Time . | . . . . Total Part Build Rating . | . . . . Part Studies Acquired . | . . . . Parts Repaired . | . . . . Time . | . . . . Parts Recycled 2 | . 1 1 . Recycled Matter 2 | . . 2 . Retrieved Matter . | . . . . Retrieved Components . | . . . . Parts Scanalyzed . | . . . . Part Schematics Acquired . | . . . . Parts Damaged . | . . . . Bothacking | -11 -10 -9 -9 ------------ Run | Yrd Mat Mat Min Used RIF Installer . | . . . . Robots Hacked . | . . . . Non-combat . | . . . . Combat . | . . . . Robot Hacks Applied . | . . . . Relay Couplers Released . | . . . . Fabnet Peak Effective % . | . . . . Robots Rewired . | . . . . Allies Hacked . | . . . . Hacks Repelled . | . . . . Allies | -11 -10 -9 -9 -------- Run | Yrd Mat Mat Min Total Allies . | . . . . Largest Group . | . . . . Highest-Rated Group . | . . . . Highest-Rated Ally . | . . . . Total Orders . | . . . . Ally Attacks . | . . . . Total Damage . | . . . . Kills . | . . . . Allies Corrupted . | . . . . Allies Melted . | . . . . Intel | -11 -10 -9 -9 ------- Run | Yrd Mat Mat Min Active Infowar (turns) 552 | 10 283 244 15 Optics 100 | . . 85 15 Terrain 446 | 4 283 159 . Seismic 340 | 10 283 47 . Robot Analysis Total . | . . . . Derelict Logs Recovered . | . . . . Drone Launches . | . . . . Drone Recoveries . | . . . . Exploration | -11 -10 -9 -9 ------------- Run | Yrd Mat Mat Min Turns Passed 685 | 143 283 244 15 Spaces Moved 405 | 111 157 134 3 Core 50 | 44 . 5 1 Treads . | . . . . Legs 353 | 67 157 129 . Wheels 2 | . . . 2 Hover . | . . . . Flight . | . . . . Fastest Speed 50 | 50 120 120 110 Average Speed 125 | 92 120 159 156 Slowest Speed 350 | 120 120 350 250 Overloaded Moves . | . . . . Propulsion Burnouts . | . . . . Robots Hopped . | . . . . Potential Cave-ins . | . . . . Cave-ins Triggered . | . . . . Exploration Rate (%) 16 | 5 41 18 2 Regions Visited 3 Branch Regions 1 Pre-discovered Areas . | . . . . Known Exits Taken . | . . . . Unknown Exits Taken 3 | 1 1 1 . Scrap Searched . | . . . . Spaces Dug . | . . . . Terrain Destroyed 29 | . 29 . . Melee . | . . . . Projectile . | . . . . AOE 29 | . 29 . . Terrain Rammed . | . . . . Walls Destroyed . | . . . . Machines Disabled . | . . . . Actions | -11 -10 -9 -9 --------- Run | Yrd Mat Mat Min Total 495 | 137 199 152 7 Wait . | . . . . Move 402 | 110 156 133 3 Hop . | . . . . Pick Up 20 | 11 6 3 . Fast Attach . | . . . . Attach 13 | 7 1 3 2 Detach 1 | . . 1 . Swap 4 | 1 2 1 . Drop 5 | 1 4 . . Fire 50 | 7 30 11 2 Melee . | . . . . Ram . | . . . . Kick . | . . . . Crush . | . . . . Escape Stasis . | . . . . Rewire . | . . . . Trap . | . . . . Miscellaneous . | . . . . Route ------- -11/Scrapyard -10/Materials -9/Materials -9/Mines History --------- Turn | Location | Event 2 | -11/Scrapyard | Met Revision 17 87 | -11/Scrapyard | Discovered new exit (range 8) 144 | -11/Scrapyard | Entered Materials 333 | -10/Materials | Build established: Mutant 409 | -10/Materials | Discovered new exit (range 16) 427 | -10/Materials | Entered another Materials area 427 | -9/Materials | Evolved 2 slots: Power x2 487 | -9/Materials | Central database locked down 647 | -9/Materials | Discovered new exit (range 9) 671 | -9/Materials | Entered Mines 686 | -9/Mines | Self-destructed Last Messages --------------- [Achievement: Spot Them First] Aluminum Leg destroyed. Critical hit (Burn: +37). EXIT=FOUND Beam Cannon destroyed. Aluminum Leg destroyed. Y-45 Defender heat short circuits Beam Rifle. Y-45 Defender heat damages core (-4). [Achievement: It's Just You] U-05 Engineer works on Electrolysis Chamber. LOCATION=UNKNOWN GOAL=ESCAPE Something is scanning the area. Different forms of propulsion may not be used simultaneously, Lgt. Treads automatically deactivated. Critical hit (Burn: +37). Mining Laser destroyed. Lgt. Nuclear Core destroyed. Wheel destroyed. Map ----- +----------------------------------------------------+ | ?????????????????????????????????????????????????? | | ?????????????????????????????????????????????????? | | ?????????????????????????????????????????????????? | | ?????????????????????????????????????????????????? | | ?????????????????????????????????????????????????? | | ?????????????????????????????????????????????????? | | ?????????????????????????????????????????????????? | | ?????????????????????????????????????????????????? | | ?????????????????????????????????????????????????? | | ?????????????????????????????????????????????????? | | ?????????????????????????????????????????????????? | | ?????????????????????????????????????????????????? | | ?????????????????????????????????????????????????? | | ?????????????????????????????????????????????????? | | ?????????????????????????????????????????????????? | | ?????????????????????????????????????????????????? | | ?????????????????????????????????????????????????? | | ?????????????????????????????????????????????????? | | ?????????????????????????????????????????????????? | | ?????????????????????????????????????????????????? | | ?????????????????????????????????????????????????? | | ?????????????????????????????????????????????????? | | ?????????????????????#######?????????????????????? | | ?????????????????????# #?????????????????????? | | ?????????????????????# #?????????????????????? | | ?????????????????????# @ #### ###??????????????? | | ?????????????????????# g g #???????????? | | ?????????????????????# ########??????????????? | | ?????????????????????# g #?????????????????????? | | ?????????????????????#######?????????????????????? | | ?????????????????????????????????????????????????? | | ?????????????????????????????????????????????????? | | ?????????????????????????????????????????????????? | | ?????????????????????????????????????????????????? | | ?????????????????????????????????????????????????? | | ?????????????????????????????????????????????????? | | ?????????????????????????????????????????????????? | | ?????????????????????????????????????????????????? | | | | | | | | | | | | | | | | | | | | | | | | | +----------------------------------------------------+ Best States ------------- Heat Dissipation 28 Energy Generation 19 Energy Capacity 310 Matter Stores 300 Matter Capacity 300 Sight Range 18 Terrain Scan Range 16 Terrain Scan Density 10 Evasion (%) 55 Item Schematics ----------------- None Robot Schematics ------------------ None Fabricated ------------ Nothing Repaired ---------- Nothing Studied --------- None Alien Tech Used ----------------- None Achievements -------------- It's Just You Loot Pinata One Hack Too Far Organ Harvest Spot Them First Challenges ------------ None Game ------ Seed GrapheneHardenedBuckler Manual? 0 Play Time 00:15:00 Cumulative 0.2 hours Start 2026.03.13 @ 14:42:36 End 2026.03.13 @ 15:00:35 Sessions 1 Manual Loads 0 Difficulty Rogue Special Mode None Game No. 1 Rogue 1 Adventurer 0 Explorer 0 Win Type - Total 0 Types 0/0/0/0/0/0/0/0/0/0 Lore% 0 Gallery% 1 Achievement% 1 Wizard Run 0 Options --------- Layout 1 ASCII 0 Keyboard 0 Movement Mouse Keybinds 0 Fullscreen 2 Font 24/Smallcaps Map View 50x35 Zoom Use 0% Tactical HUD 0 Map Filters NONE Filters NONE Steam 1 RUN: 83596c0b-7a0c-46fc-9db1-5f56688eb483